fUSD/lending_fUSD_20260625
["ID","MTS","AMOUNT","RATE_DAILY","PERIOD"]
[426339951,1782325813000,-500.0,0.00012264,2]
[426339950,1782325813000,-500.0,0.00012264,2]
[426339949,1782325813000,-500.0,0.00012264,2]
[426339948,1782325813000,-500.0,0.00012264,2]
[426339947,1782325813000,-150.0,0.00012263,2]
[426339969,1782325833000,-71.49693755,0.00012264,2]
[426339973,1782325833000,-265.15064825,0.00012264,2]
[426339972,1782325833000,-214.92258193,0.00012264,2]
[426339966,1782325833000,-500.0,0.00012264,2]
[426339970,1782325833000,-500.0,0.00012264,2]
[426339967,1782325833000,-500.0,0.00012264,2]
[426339968,1782325833000,-428.50306245,0.00012264,2]
[426339965,1782325833000,-500.0,0.00012264,2]
[426339964,1782325833000,-500.0,0.00012264,2]
[426339975,1782325833000,-122.71464825,0.00012264,2]
[426339971,1782325833000,-285.07741807,0.00012264,2]
[426339974,1782325833000,-234.84935175,0.00012264,2]
[426339963,1782325833000,-104.60859084,0.00012264,2]
[426339977,1782325833000,-63.56535175,0.00012264,2]
[426339976,1782325833000,-313.72,0.00012264,2]
[426339991,1782325833000,-500.0,0.00012264,2]
[426339985,1782325833000,-500.0,0.00012264,2]
[426339989,1782325833000,-500.0,0.00012264,2]
[426339987,1782325833000,-500.0,0.00012264,2]
[426339983,1782325833000,-500.0,0.00012264,2]
[426339990,1782325833000,-500.0,0.00012264,2]
[426339978,1782325833000,-500.0,0.00012264,2]
[426339982,1782325833000,-500.0,0.00012264,2]
[426339981,1782325833000,-500.0,0.00012264,2]
[426339979,1782325833000,-500.0,0.00012264,2]
[426339980,1782325833000,-500.0,0.00012264,2]
[426339988,1782325833000,-500.0,0.00012264,2]
[426340045,1782325834000,-151.0,0.00012354,2]
[426340038,1782325834000,-151.0,0.00012354,2]
[426340046,1782325834000,-151.0,0.00012354,2]
[426340040,1782325834000,-153.0,0.00012354,2]
[426340034,1782325834000,-317.0,0.00012354,2]
[426340033,1782325834000,-320.0,0.00012354,2]
[426340035,1782325834000,-153.0,0.00012354,2]
[426340030,1782325834000,-153.0,0.00012354,2]
[426340027,1782325834000,-500.0,0.00012352,2]
[426340047,1782325834000,-151.0,0.00012354,2]
[426340042,1782325834000,-500.0,0.00012354,2]
[426340048,1782325834000,-151.0,0.00012354,2]
[426340060,1782325834000,-151.0,0.00012354,2]
[426340039,1782325834000,-151.0,0.00012354,2]
[426340044,1782325834000,-153.0,0.00012354,2]
[426340043,1782325834000,-151.0,0.00012354,2]
[426340050,1782325834000,-150.0,0.00012354,2]
[426340031,1782325834000,-151.0,0.00012354,2]
[426340051,1782325834000,-152.0,0.00012354,2]
[426340052,1782325834000,-151.0,0.00012354,2]
[426340056,1782325834000,-150.0,0.00012354,2]
[426340059,1782325834000,-151.0,0.00012354,2]
[426340057,1782325834000,-151.0,0.00012354,2]
[426340053,1782325834000,-152.0,0.00012354,2]
[426340054,1782325834000,-151.0,0.00012354,2]
[426340041,1782325834000,-150.0,0.00012354,2]
[426340028,1782325834000,-278.05069763,0.00012352,2]
[426340021,1782325834000,-4349.58,0.00012329,2]
[426340032,1782325834000,-321.0,0.00012354,2]
[426340000,1782325834000,-500.0,0.00012264,2]
[426340002,1782325834000,-500.0,0.00012264,2]
[426340004,1782325834000,-500.0,0.00012264,2]
[426339998,1782325834000,-500.0,0.00012264,2]
[426340006,1782325834000,-500.0,0.00012264,2]
[426339996,1782325834000,-500.0,0.00012264,2]
[426339992,1782325834000,-500.0,0.00012264,2]
[426339994,1782325834000,-385.41602852,0.00012264,2]
[426340010,1782325834000,-500.0,0.00012264,2]
[426340008,1782325834000,-500.0,0.00012264,2]
[426340012,1782325834000,-500.0,0.00012264,2]
[426340014,1782325834000,-500.0,0.00012264,2]
[426340024,1782325834000,-170.22061046,0.00012352,2]
[426340013,1782325834000,-500.0,0.00012264,2]
[426340015,1782325834000,-533.19171583,0.00012264,2]
[426340016,1782325834000,-500.0,0.00012264,2]
[426340023,1782325834000,-304.44026277,0.00012352,2]
[426340019,1782325834000,-223.8357025,0.00012265,2]
[426340018,1782325834000,-6678.34,0.00012265,2]
[426340017,1782325834000,-500.0,0.00012264,2]
[426340022,1782325834000,-255.99,0.00012344,2]
[426340020,1782325834000,-150.0,0.00012304,2]
[426340058,1782325834000,-151.0,0.00012354,2]
[426340026,1782325834000,-500.0,0.00012352,2]
[426340037,1782325834000,-152.0,0.00012354,2]
[426340036,1782325834000,-293.0,0.00012354,2]
[426340029,1782325834000,-441.78038877,0.00012352,2]
[426340025,1782325834000,-274.60364339,0.00012352,2]
[426340055,1782325834000,-152.0,0.00012354,2]
[426340049,1782325834000,-151.0,0.00012354,2]
[426340062,1782325834000,-152.0,0.00012354,2]
[426340093,1782325834000,-311.0,0.00012355,2]
[426340097,1782325834000,-313.0,0.00012355,2]
[426340090,1782325834000,-311.0,0.00012355,2]
[426340094,1782325834000,-318.0,0.00012355,2]
[426340099,1782325834000,-151.0,0.00012355,2]
[426340098,1782325834000,-310.0,0.00012355,2]
[426340104,1782325834000,-2061.69,0.00012744,2]
[426340100,1782325834000,-216.42324807,0.00012364,2]
[426340102,1782325834000,-800.0,0.00012595,2]
[426340101,1782325834000,-293.07,0.00012595,2]
[426340105,1782325834000,-3974.85,0.00012744,2]
[426340107,1782325834000,-1148.37,0.00012845,2]
[426340096,1782325834000,-151.0,0.00012355,2]
[426340106,1782325834000,-160.13,0.00012767,2]
[426340108,1782325834000,-276.43,0.00012877,2]
[426340061,1782325834000,-151.0,0.00012354,2]
[426340112,1782325834000,-8647.29,0.0001292,2]
[426340111,1782325834000,-8647.29,0.0001292,2]
[426340113,1782325834000,-1068.09507021,0.00012929,3]
[426340110,1782325834000,-800.0,0.0001291,2]
[426340115,1782325834000,-22538.4272726,0.00012929,2]
[426340116,1782325834000,-897.29788209,0.00012929,2]
[426340114,1782325834000,-691.89909591,0.00012929,2]
[426340118,1782325834000,-233165.00784749,0.0001293,2]
[426340119,1782325834000,-3317.21484677,0.0001293,2]
[426340117,1782325834000,-3014.43616808,0.00012929,2]
[426340103,1782325834000,-500.0,0.00012628,2]
[426340095,1782325834000,-316.0,0.00012355,2]
[426340109,1782325834000,-500.0,0.00012902,2]
[426340092,1782325834000,-153.0,0.00012355,2]
[426340091,1782325834000,-317.0,0.00012355,2]
[426340063,1782325834000,-150.0,0.00012354,2]
[426340064,1782325834000,-150.0,0.00012354,2]
[426340068,1782325834000,-320.0,0.00012354,2]
[426340073,1782325834000,-163.81,0.00012355,2]
[426340065,1782325834000,-151.0,0.00012354,2]
[426340072,1782325834000,-320.0,0.00012355,2]
[426340070,1782325834000,-151.0,0.00012354,2]
[426340067,1782325834000,-151.0,0.00012354,2]
[426340066,1782325834000,-150.0,0.00012354,2]
[426340071,1782325834000,-316.0,0.00012355,2]
[426340074,1782325834000,-179.25748836,0.00012355,2]
[426340078,1782325834000,-150.0,0.00012355,2]
[426340069,1782325834000,-284.5630319,0.00012354,2]
[426340080,1782325834000,-310.0,0.00012355,2]
[426340088,1782325834000,-318.0,0.00012355,2]
[426340079,1782325834000,-315.0,0.00012355,2]
[426340089,1782325834000,-151.0,0.00012355,2]
[426340087,1782325834000,-314.0,0.00012355,2]
[426340085,1782325834000,-150.0,0.00012355,2]
[426340084,1782325834000,-313.0,0.00012355,2]
[426340086,1782325834000,-316.0,0.00012355,2]
[426340083,1782325834000,-317.0,0.00012355,2]
[426340082,1782325834000,-151.0,0.00012355,2]
[426340081,1782325834000,-319.0,0.00012355,2]
[426340076,1782325834000,-313.0,0.00012355,2]
[426340075,1782325834000,-313.0,0.00012355,2]
[426340077,1782325834000,-320.0,0.00012355,2]
[426340157,1782325838000,-150.0,0.00013488,2]
[426340156,1782325838000,-150.0,0.00013488,2]
[426340158,1782325838000,-150.0,0.00013488,2]
[426340162,1782325838000,-150.0,0.00013488,2]
[426340161,1782325838000,-150.0,0.00013488,2]
[426340152,1782325838000,-6231.75258164,0.00013463,2]
[426340163,1782325838000,-150.0,0.00013488,2]
[426340175,1782325838000,-150.0,0.00013563,2]
[426340159,1782325838000,-150.0,0.00013488,2]
[426340165,1782325838000,-500.0,0.00013491,2]
[426340173,1782325838000,-1080.90492825,0.00013562,3]
[426340172,1782325838000,-150.0,0.00013561,2]
[426340174,1782325838000,-1000.0,0.00013563,2]
[426340164,1782325838000,-302.85243777,0.00013489,2]
[426340154,1782325838000,-432.02981623,0.00013471,2]
[426340160,1782325838000,-152.20342391,0.00013488,2]
[426340155,1782325838000,-265.04119315,0.00013471,2]
[426340138,1782325838000,-1169937.55969612,0.0001293,2]
[426340151,1782325838000,-1113.83667818,0.00013463,2]
[426340166,1782325838000,-3014.43616801,0.00013492,2]
[426340135,1782325838000,-1008.48997185,0.0001293,2]
[426340136,1782325838000,-90993.17762195,0.0001293,2]
[426340137,1782325838000,-1578.55001582,0.0001293,2]
[426340140,1782325838000,-382.21269236,0.00013029,2]
[426340148,1782325838000,-22538.42727258,0.00013367,2]
[426340149,1782325838000,-500.0,0.0001345,2]
[426340139,1782325838000,-272.16529691,0.00012972,7]
[426340143,1782325838000,-500.0,0.00013176,2]
[426340141,1782325838000,-48050.20102659,0.0001303,2]
[426340145,1782325838000,-800.0,0.00013225,2]
[426340146,1782325838000,-255.0,0.00013354,2]
[426340147,1782325838000,-189.67057432,0.00013363,2]
[426340142,1782325838000,-22538.42727258,0.00013148,2]
[426340144,1782325838000,-3014.43616801,0.00013211,2]
[426340153,1782325838000,-20663.24505257,0.00013471,2]
[426340170,1782325838000,-586.392177,0.00013529,2]
[426340150,1782325838000,-275.19067881,0.00013463,2]
[426340168,1782325838000,-150.0,0.00013525,2]
[426340205,1782325838000,-500.0,0.00013698,2]
[426340207,1782325838000,-500.0,0.00013698,2]
[426340198,1782325838000,-500.0,0.00013698,2]
[426340200,1782325838000,-500.0,0.00013698,2]
[426340213,1782325838000,-500.0,0.00013698,2]
[426340211,1782325838000,-500.0,0.00013698,2]
[426340217,1782325838000,-500.0,0.00013698,2]
[426340220,1782325838000,-500.0,0.00013698,2]
[426340226,1782325838000,-500.0,0.00013698,2]
[426340215,1782325838000,-500.0,0.00013698,2]
[426340223,1782325838000,-500.0,0.00013698,2]
[426340222,1782325838000,-500.0,0.00013698,2]
[426340224,1782325838000,-500.0,0.00013698,2]
[426340228,1782325838000,-500.0,0.00013698,2]
[426340167,1782325838000,-150.0,0.00013524,2]
[426340194,1782325838000,-150.0,0.00013675,2]
[426340209,1782325838000,-500.0,0.00013698,2]
[426340196,1782325838000,-150.0,0.00013675,2]
[426340183,1782325838000,-20663.24505248,0.0001363,2]
[426340176,1782325838000,-1548991.955,0.00013563,2]
[426340178,1782325838000,-22538.42727258,0.00013586,2]
[426340180,1782325838000,-150.0,0.000136,2]
[426340182,1782325838000,-150.0,0.00013613,2]
[426340184,1782325838000,-150.0,0.00013634,2]
[426340203,1782325838000,-500.0,0.00013698,2]
[426340177,1782325838000,-150.0,0.00013571,2]
[426340179,1782325838000,-150.0,0.00013597,2]
[426340186,1782325838000,-150.0,0.00013654,2]
[426340181,1782325838000,-150.0,0.00013603,2]
[426340185,1782325838000,-150.0,0.00013638,2]
[426340187,1782325838000,-1000.0,0.00013654,2]
[426340189,1782325838000,-240.113806,0.00013668,2]
[426340191,1782325838000,-183.764802,0.00013668,2]
[426340193,1782325838000,-150.0,0.0001367,2]
[426340171,1782325838000,-800.0,0.0001354,2]
[426340169,1782325838000,-458.572345,0.00013529,2]
[426340235,1782325839000,-500.0,0.00013698,2]
[426340231,1782325839000,-500.0,0.00013698,2]
[426340233,1782325839000,-500.0,0.00013698,2]
[426340251,1782325839000,-500.0,0.00013698,2]
[426340237,1782325839000,-500.0,0.00013698,2]
[426340239,1782325839000,-500.0,0.00013698,2]
[426340241,1782325839000,-500.0,0.00013698,2]
[426340229,1782325839000,-500.0,0.00013698,2]
[426340561,1782325840000,-150.0,0.00014426,2]
[426340553,1782325840000,-20663.24505248,0.00014424,2]
[426340559,1782325840000,-150.0,0.00014426,2]
[426340555,1782325840000,-150.0,0.00014424,2]
[426340550,1782325840000,-150.0,0.0001441,2]
[426340551,1782325840000,-275.19067876,0.00014421,2]
[426340548,1782325840000,-150.0,0.00014404,2]
[426340546,1782325840000,-15300.0,0.000144,5]
[426340547,1782325840000,-150.0,0.00014401,2]
[426340541,1782325840000,-150.0,0.00014365,2]
[426340537,1782325840000,-300.60459797,0.00014357,2]
[426340545,1782325840000,-2000.0,0.000144,2]
[426340557,1782325840000,-150.0,0.00014424,2]
[426340565,1782325840000,-150.0,0.00014426,2]
[426340567,1782325840000,-191.82530748,0.00014426,2]
[426340569,1782325840000,-150.99837498,0.00014426,2]
[426340571,1782325840000,-500.0,0.00014426,2]
[426340575,1782325840000,-500.0,0.00014426,2]
[426340573,1782325840000,-500.0,0.00014426,2]
[426340581,1782325840000,-500.0,0.00014426,2]
[426340579,1782325840000,-500.0,0.00014426,2]
[426340583,1782325840000,-500.0,0.00014426,2]
[426340585,1782325840000,-500.0,0.00014426,2]
[426340601,1782325840000,-500.0,0.00014426,2]
[426340599,1782325840000,-500.0,0.00014426,2]
[426340597,1782325840000,-500.0,0.00014426,2]
[426340606,1782325840000,-517.50702938,0.00014426,2]
[426340539,1782325840000,-150.0,0.00014362,2]
[426340563,1782325840000,-200.0,0.00014426,2]
[426340543,1782325840000,-150.0,0.00014387,2]
[426340486,1782325840000,-150.0,0.00014154,2]
[426340535,1782325840000,-150.0,0.00014349,2]
[426340475,1782325840000,-150.0,0.00014109,2]
[426340478,1782325840000,-150.0,0.00014112,2]
[426340480,1782325840000,-500.0,0.00014115,2]
[426340482,1782325840000,-150.0,0.00014125,2]
[426340484,1782325840000,-150.0,0.00014146,2]
[426340500,1782325840000,-265.04119313,0.00014186,2]
[426340498,1782325840000,-432.02981622,0.00014186,2]
[426340502,1782325840000,-150.0,0.000142,2]
[426340604,1782325840000,-328.56158348,0.00014426,2]
[426340492,1782325840000,-150.0,0.00014179,2]
[426340507,1782325840000,-150.0,0.00014237,2]
[426340496,1782325840000,-150.0,0.00014182,2]
[426340490,1782325840000,-293.07,0.0001417,2]
[426340517,1782325840000,-150.0,0.00014255,2]
[426340494,1782325840000,-275.19067876,0.00014182,2]
[426340488,1782325840000,-150.0,0.00014162,2]
[426340509,1782325840000,-150.0,0.00014237,2]
[426340523,1782325840000,-150.0,0.00014274,2]
[426340527,1782325840000,-150.0,0.00014295,2]
[426340525,1782325840000,-150.0,0.00014292,2]
[426340513,1782325840000,-150.0,0.00014237,2]
[426340529,1782325840000,-150.0,0.00014312,2]
[426340511,1782325840000,-150.0,0.00014237,2]
[426340519,1782325840000,-20663.24505248,0.00014265,2]
[426340515,1782325840000,-22538.42727258,0.00014243,2]
[426340531,1782325840000,-150.0,0.0001432,2]
[426340533,1782325840000,-150.0,0.00014328,2]
[426340521,1782325840000,-500.0,0.00014272,2]
[426340505,1782325840000,-150.0,0.00014219,2]
[426340608,1782325840000,-150.0,0.00014438,2]
[426340577,1782325840000,-500.0,0.00014426,2]
[426340610,1782325840000,-150.0,0.00014462,2]
[426340684,1782325840000,-150.0,0.00014737,2]
[426340679,1782325840000,-150.0,0.0001473,2]
[426340681,1782325840000,-150.0,0.00014737,2]
[426340686,1782325840000,-20663.24505248,0.00014741,2]
[426340688,1782325840000,-150.0,0.00014756,2]
[426340690,1782325840000,-150.0,0.00014762,2]
[426340668,1782325840000,-150.0,0.00014657,2]
[426340672,1782325840000,-150.0,0.00014687,2]
[426340670,1782325840000,-275.19067876,0.00014661,2]
[426340674,1782325840000,-150.0,0.00014694,2]
[426340675,1782325840000,-3800.0,0.000147,5]
[426340694,1782325840000,-150.0,0.00014799,2]
[426340696,1782325840000,-150.0,0.00014799,2]
[426340705,1782325840000,-150.0,0.00014836,2]
[426340709,1782325840000,-25000.0,0.00014847,3]
[426340702,1782325840000,-150.0,0.0001482,2]
[426340707,1782325840000,-150.0,0.0001484,2]
[426340710,1782325840000,-25000.0,0.00014856,3]
[426340700,1782325840000,-150.0,0.00014804,2]
[426340698,1782325840000,-3800.0,0.000148,5]
[426340712,1782325840000,-150.0,0.00014861,2]
[426340714,1782325840000,-25000.0,0.00014865,3]
[426340716,1782325840000,-150.0,0.00014871,2]
[426340718,1782325840000,-25000.0,0.00014874,3]
[426340725,1782325840000,-25000.0,0.00014891,3]
[426340720,1782325840000,-150.0,0.00014874,2]
[426340724,1782325840000,-25000.0,0.00014882,3]
[426340722,1782325840000,-150.0,0.00014877,2]
[426340593,1782325840000,-500.0,0.00014426,2]
[426340677,1782325840000,-150.0,0.00014724,2]
[426340666,1782325840000,-150.0,0.00014653,2]
[426340692,1782325840000,-150.0,0.00014767,2]
[426340664,1782325840000,-150.0,0.00014649,2]
[426340662,1782325840000,-150.0,0.0001464,2]
[426340588,1782325840000,-500.0,0.00014426,2]
[426340590,1782325840000,-516.29327119,0.00014426,2]
[426340595,1782325840000,-500.0,0.00014426,2]
[426340612,1782325840000,-22538.42727258,0.00014462,2]
[426340614,1782325840000,-150.0,0.00014475,2]
[426340618,1782325840000,-150.0,0.00014487,2]
[426340616,1782325840000,-150.0,0.00014487,2]
[426340620,1782325840000,-1991.44,0.00014497,2]
[426340622,1782325840000,-521.30570147,0.00014498,2]
[426340632,1782325840000,-150.0,0.00014511,2]
[426340624,1782325840000,-779.84215215,0.00014498,2]
[426340628,1782325840000,-150.0,0.00014499,2]
[426340626,1782325840000,-1055.1519,0.00014498,2]
[426340630,1782325840000,-19100.0,0.000145,5]
[426340592,1782325840000,-500.0,0.00014426,2]
[426340658,1782325840000,-150.0,0.00014612,2]
[426340634,1782325840000,-150.0,0.00014525,2]
[426340654,1782325840000,-150.0,0.00014612,2]
[426340656,1782325840000,-150.0,0.00014612,2]
[426340648,1782325840000,-20663.24505248,0.00014582,2]
[426340640,1782325840000,-500.0,0.00014546,2]
[426340644,1782325840000,-150.0,0.0001457,2]
[426340650,1782325840000,-150.0,0.00014584,2]
[426340652,1782325840000,-3800.0,0.000146,5]
[426340646,1782325840000,-150.0,0.00014574,2]
[426340642,1782325840000,-150.0,0.00014548,2]
[426340636,1782325840000,-150.0,0.00014537,2]
[426340638,1782325840000,-433.0,0.00014544,2]
[426340660,1782325840000,-150.0,0.00014621,2]
[426340806,1782325841000,-1282.64528638,0.00014999,5]
[426340817,1782325841000,-495.34254854,0.00014999,2]
[426340815,1782325841000,-500.0,0.00014999,2]
[426340810,1782325841000,-500.0,0.00014999,2]
[426340808,1782325841000,-6770.6652981,0.00014999,2]
[426340798,1782325841000,-500.0,0.00014998,2]
[426340790,1782325841000,-500.0,0.00014998,2]
[426340804,1782325841000,-1080.90492825,0.00014999,5]
[426340794,1782325841000,-500.0,0.00014998,2]
[426340800,1782325841000,-500.0,0.00014998,2]
[426340796,1782325841000,-500.0,0.00014998,2]
[426340818,1782325841000,-490668.1380707,0.00014999,2]
[426340792,1782325841000,-500.0,0.00014998,2]
[426340802,1782325841000,-3418.3740563,0.00014999,2]
[426340813,1782325841000,-500.0,0.00014999,2]
[426340840,1782325841000,-500.0,0.00014999,2]
[426340822,1782325841000,-500.0,0.00014999,2]
[426340826,1782325841000,-500.0,0.00014999,2]
[426340830,1782325841000,-500.6561736,0.00014999,2]
[426340828,1782325841000,-500.0,0.00014999,2]
[426340824,1782325841000,-500.0,0.00014999,2]
[426340832,1782325841000,-1080.90492825,0.00014999,5]
[426340842,1782325841000,-510.39840993,0.00014999,2]
[426340844,1782325841000,-500.0,0.00014999,2]
[426340836,1782325841000,-500.0,0.00014999,2]
[426340838,1782325841000,-500.0,0.00014999,2]
[426340834,1782325841000,-500.0,0.00014999,2]
[426340846,1782325841000,-500.0,0.00014999,2]
[426340854,1782325841000,-500.0,0.00014999,2]
[426340849,1782325841000,-500.0,0.00014999,2]
[426340820,1782325841000,-3295.9581463,0.00014999,2]
[426340788,1782325841000,-151.0,0.00014997,2]
[426340726,1782325841000,-500.0,0.00014899,2]
[426340782,1782325841000,-331751.1612014,0.00014989,2]
[426340852,1782325841000,-500.0,0.00014999,2]
[426340738,1782325841000,-20663.24505248,0.000149,2]
[426340735,1782325841000,-25000.0,0.000149,3]
[426340732,1782325841000,-25000.0,0.000149,3]
[426340728,1782325841000,-25000.0,0.000149,3]
[426340730,1782325841000,-275.19067876,0.000149,2]
[426340739,1782325841000,-432.02981622,0.000149,2]
[426340734,1782325841000,-3800.0,0.000149,5]
[426340741,1782325841000,-897.29788207,0.000149,2]
[426340743,1782325841000,-265.04119313,0.000149,2]
[426340747,1782325841000,-581.74,0.00014908,2]
[426340745,1782325841000,-150.0,0.00014903,2]
[426340749,1782325841000,-150.0,0.00014911,2]
[426340751,1782325841000,-150.0,0.00014913,2]
[426340784,1782325841000,-4618.4837341,0.00014989,2]
[426340753,1782325841000,-150.0,0.00014949,2]
[426340761,1782325841000,-201.49,0.00014985,2]
[426340755,1782325841000,-150.0,0.0001495,2]
[426340757,1782325841000,-10694.0,0.00014959,2]
[426340759,1782325841000,-1865.73375321,0.0001496,2]
[426340763,1782325841000,-168.07,0.00014985,2]
[426340766,1782325841000,-160.68020166,0.00014986,2]
[426340768,1782325841000,-168.88011082,0.00014986,2]
[426340770,1782325841000,-233.86685549,0.00014986,2]
[426340772,1782325841000,-247.36643145,0.00014986,2]
[426340774,1782325841000,-209.17418234,0.00014986,2]
[426340780,1782325841000,-500.0,0.00014988,2]
[426340786,1782325841000,-151.0,0.00014997,2]
[426340778,1782325841000,-297.89529666,0.00014986,2]
[426340776,1782325841000,-192.35127979,0.00014986,2]
[426340765,1782325841000,-366.36,0.00014985,2]
[426340856,1782325841000,-500.0,0.00014999,2]
[426340944,1782325841000,-500.0,0.00014999,2]
[426340858,1782325841000,-301.5,0.00014999,2]
[426340915,1782325841000,-500.0,0.00014999,2]
[426340925,1782325841000,-500.0,0.00014999,2]
[426340916,1782325841000,-500.0,0.00014999,2]
[426340917,1782325841000,-500.0,0.00014999,2]
[426340914,1782325841000,-500.0,0.00014999,2]
[426340926,1782325841000,-500.0,0.00014999,2]
[426340918,1782325841000,-500.0,0.00014999,2]
[426340919,1782325841000,-500.0,0.00014999,2]
[426340923,1782325841000,-500.0,0.00014999,2]
[426340924,1782325841000,-500.0,0.00014999,2]
[426340920,1782325841000,-500.0,0.00014999,2]
[426340921,1782325841000,-500.0,0.00014999,2]
[426340922,1782325841000,-500.0,0.00014999,2]
[426340927,1782325841000,-500.0,0.00014999,2]
[426340911,1782325841000,-500.0,0.00014999,2]
[426340929,1782325841000,-500.0,0.00014999,2]
[426340930,1782325841000,-500.0,0.00014999,2]
[426340935,1782325841000,-500.0,0.00014999,2]
[426340851,1782325841000,-500.0,0.00014999,2]
[426340933,1782325841000,-500.0,0.00014999,2]
[426340931,1782325841000,-500.0,0.00014999,2]
[426340928,1782325841000,-500.0,0.00014999,2]
[426340936,1782325841000,-500.0,0.00014999,2]
[426340937,1782325841000,-500.0,0.00014999,2]
[426340938,1782325841000,-500.0,0.00014999,2]
[426340939,1782325841000,-500.0,0.00014999,2]
[426340940,1782325841000,-500.0,0.00014999,2]
[426340942,1782325841000,-500.0,0.00014999,2]
[426340943,1782325841000,-500.0,0.00014999,2]
[426340941,1782325841000,-500.0,0.00014999,2]
[426340932,1782325841000,-500.0,0.00014999,2]
[426340910,1782325841000,-500.0,0.00014999,2]
[426340934,1782325841000,-500.0,0.00014999,2]
[426340903,1782325841000,-500.0,0.00014999,2]
[426340899,1782325841000,-500.0,0.00014999,2]
[426340866,1782325841000,-500.0,0.00014999,2]
[426340860,1782325841000,-500.0,0.00014999,2]
[426340862,1782325841000,-500.0,0.00014999,2]
[426340872,1782325841000,-500.0,0.00014999,2]
[426340870,1782325841000,-500.0,0.00014999,2]
[426340868,1782325841000,-191.21376906,0.00014999,2]
[426340878,1782325841000,-500.0,0.00014999,2]
[426340876,1782325841000,-500.0,0.00014999,2]
[426340874,1782325841000,-500.0,0.00014999,2]
[426340880,1782325841000,-500.0,0.00014999,2]
[426340882,1782325841000,-1000.0,0.00014999,2]
[426340893,1782325841000,-500.0,0.00014999,2]
[426340886,1782325841000,-500.0,0.00014999,2]
[426340884,1782325841000,-500.0,0.00014999,2]
[426340864,1782325841000,-500.0,0.00014999,2]
[426340889,1782325841000,-500.0,0.00014999,2]
[426340902,1782325841000,-500.0,0.00014999,2]
[426340913,1782325841000,-500.0,0.00014999,2]
[426340891,1782325841000,-500.0,0.00014999,2]
[426340912,1782325841000,-478.67,0.00014999,2]
[426340908,1782325841000,-500.0,0.00014999,2]
[426340907,1782325841000,-500.0,0.00014999,2]
[426340909,1782325841000,-500.0,0.00014999,2]
[426340905,1782325841000,-500.0,0.00014999,2]
[426340898,1782325841000,-500.0,0.00014999,2]
[426340896,1782325841000,-500.0,0.00014999,2]
[426340897,1782325841000,-500.0,0.00014999,2]
[426340895,1782325841000,-500.0,0.00014999,2]
[426340887,1782325841000,-500.0,0.00014999,2]
[426340900,1782325841000,-500.0,0.00014999,2]
[426340969,1782325842000,-500.0,0.00014999,2]
[426340968,1782325842000,-500.0,0.00014999,2]
[426340979,1782325842000,-500.0,0.00014999,2]
[426340980,1782325842000,-500.0,0.00014999,2]
[426340971,1782325842000,-500.0,0.00014999,2]
[426340981,1782325842000,-500.0,0.00014999,2]
[426340970,1782325842000,-500.0,0.00014999,2]
[426340974,1782325842000,-500.0,0.00014999,2]